[Event "FIDE World Rapid Chess Championship 2021"]
[White "Erdos, Viktor"]
[Black "Petrovskyi, Vadym"]
[WhiteFideId "719978"]
[BlackFideId "14165210"]
[WhiteElo "2601"]
[BlackElo "2282"]
[Result "1/2-1/2"]
[Round "05"]
[TimeControl "900+10"]
[Date "2021.12.26"]
[WhiteClock "0:00:13"]
[BlackClock "0:09:50"]

1. e4 {[%clk 0:00:13]}  c5 {[%clk 0:09:50]} 2. Nf3 {[%clk 0:00:13]}  d6 {[%clk 0:09:50]} 3. Bb5+ {[%clk 0:00:13]}  Bd7 {[%clk 0:09:50]} 4. c4 {[%clk 0:00:13]}  Nf6 {[%clk 0:09:50]} 5. Nc3 {[%clk 0:00:13]}  g6 {[%clk 0:09:50]} 6. O-O {[%clk 0:00:13]}  Bg7 {[%clk 0:09:50]} 7. d4 {[%clk 0:00:13]}  cxd4 {[%clk 0:09:50]} 8. Nxd4 {[%clk 0:00:13]}  O-O {[%clk 0:09:50]} 9. h3 {[%clk 0:00:13]}  a6 {[%clk 0:09:50]} 10. Bxd7 {[%clk 0:00:13]}  Qxd7 {[%clk 0:09:50]} 11. Be3 {[%clk 0:00:13]}  Rc8 {[%clk 0:09:50]} 12. Qe2 {[%clk 0:00:13]}  Nc6 {[%clk 0:09:50]} 13. Rad1 {[%clk 0:00:13]}  Nxd4 {[%clk 0:09:50]} 14. Bxd4 {[%clk 0:00:13]}  Qc6 {[%clk 0:09:50]} 15. b3 {[%clk 0:00:13]}  e6 {[%clk 0:09:50]} 16. Rd3 {[%clk 0:00:13]}  Rd8 {[%clk 0:09:50]} 17. Rfd1 {[%clk 0:00:13]}  b5 {[%clk 0:09:50]} 18. Rf3 {[%clk 0:00:13]}  e5 {[%clk 0:09:50]} 19. Nd5 {[%clk 0:00:13]}  Nxd5 {[%clk 0:09:50]} 20. cxd5 {[%clk 0:00:13]}  Qb7 {[%clk 0:09:50]} 21. Bb2 {[%clk 0:00:13]}  Bh6 {[%clk 0:09:50]} 22. Bc1 {[%clk 0:00:13]}  Bxc1 {[%clk 0:09:50]} 23. Rxc1 {[%clk 0:00:13]}  Rac8 {[%clk 0:09:50]} 24. Rfc3 {[%clk 0:00:13]}  Rxc3 {[%clk 0:09:50]} 25. Rxc3 {[%clk 0:00:13]}  Rc8 {[%clk 0:09:50]} 26. Qc2 {[%clk 0:00:13]}  Rxc3 {[%clk 0:09:50]} 27. Qxc3 {[%clk 0:00:13]}  Kf8 {[%clk 0:09:50]} 28. Qc1 {[%clk 0:00:13]}  Qb6 {[%clk 0:09:50]} 29. Qc8+ {[%clk 0:00:13]}  Kg7 {[%clk 0:09:50]} 30. Qc6 {[%clk 0:00:13]}  Qd4 {[%clk 0:09:50]} 31. Qxa6 {[%clk 0:00:13]}  Qxe4 {[%clk 0:09:50]} 32. Qxd6 {[%clk 0:00:13]}  b4 {[%clk 0:09:50]} 33. Qc5 {[%clk 0:00:13]}  Qd4 {[%clk 0:09:50]} 34. Qe7 {[%clk 0:00:13]}  Qa1+ {[%clk 0:09:50]} 35. Kh2 {[%clk 0:00:13]}  Qd4 {[%clk 0:09:50]} 36. Kg1 {[%clk 0:00:13]}  Qa1+ {[%clk 0:09:50]} 37. Kh2 {[%clk 0:00:13]}  Qd4 {[%clk 0:09:50]} 38. Kg1 {[%clk 0:00:13]}  Qa1+ {[%clk 0:09:50]} 39. Kh2 {[%clk 0:00:13]}  Qd4 {[%clk 0:09:50]} 40. a4 {[%clk 0:00:13]}  Qf4+ {[%clk 0:09:50]} 41. Kh1 {[%clk 0:00:13]}  Qc1+ {[%clk 0:09:50]} 42. Kh2 {[%clk 0:00:13]}  Qf4+ {[%clk 0:09:50]} 1/2-1/2


[Site "http://www.Chess.com"]

[Event "FIDE World Rapid Chess Championship 2021"]
[White "Kosakowski, Jakub"]
[Black "Adly, Ahmed"]
[WhiteFideId "1185080"]
[BlackFideId "10601619"]
[WhiteElo "2304"]
[BlackElo "2597"]
[Result "1-0"]
[Round "05"]
[TimeControl "900+10"]
[Date "2021.12.26"]
[WhiteClock "0:01:48"]
[BlackClock "0:05:49"]

1. e4 {[%clk 0:01:48]}  c5 {[%clk 0:05:49]} 2. Nf3 {[%clk 0:01:48]}  Nf6 {[%clk 0:05:49]} 3. e5 {[%clk 0:01:48]}  Nd5 {[%clk 0:05:49]} 4. b3 {[%clk 0:01:48]}  Nc6 {[%clk 0:05:49]} 5. Bb2 {[%clk 0:01:48]}  d6 {[%clk 0:05:49]} 6. Bb5 {[%clk 0:01:48]}  Bd7 {[%clk 0:05:49]} 7. exd6 {[%clk 0:01:48]}  e6 {[%clk 0:05:49]} 8. Bxc6 {[%clk 0:01:48]}  Bxc6 {[%clk 0:05:49]} 9. Ne5 {[%clk 0:01:48]}  Qxd6 {[%clk 0:05:49]} 10. O-O {[%clk 0:01:48]}  Be7 {[%clk 0:05:49]} 11. Na3 {[%clk 0:01:48]}  Bf6 {[%clk 0:05:49]} 12. Nac4 {[%clk 0:01:48]}  Qc7 {[%clk 0:05:49]} 13. Nxc6 {[%clk 0:01:48]}  Bxb2 {[%clk 0:05:49]} 14. Nxb2 {[%clk 0:01:48]}  Qxc6 {[%clk 0:05:49]} 15. Qg4 {[%clk 0:01:48]}  O-O {[%clk 0:05:49]} 16. Rac1 {[%clk 0:01:48]}  Rad8 {[%clk 0:05:49]} 17. a3 {[%clk 0:01:48]}  Nf6 {[%clk 0:05:49]} 18. Qe2 {[%clk 0:01:48]}  Rd4 {[%clk 0:05:49]} 19. Nc4 {[%clk 0:01:48]}  Rfd8 {[%clk 0:05:49]} 20. d3 {[%clk 0:01:48]}  Nd5 {[%clk 0:05:49]} 21. g3 {[%clk 0:01:48]}  Nf6 {[%clk 0:05:49]} 22. Rfe1 {[%clk 0:01:48]}  h5 {[%clk 0:05:49]} 23. Ne5 {[%clk 0:01:48]}  Qc7 {[%clk 0:05:49]} 24. a4 {[%clk 0:01:48]}  R4d5 {[%clk 0:05:49]} 25. Rcd1 {[%clk 0:01:48]}  a6 {[%clk 0:05:49]} 26. Nc4 {[%clk 0:01:48]}  g6 {[%clk 0:05:49]} 27. Ne3 {[%clk 0:01:48]}  Rd4 {[%clk 0:05:49]} 28. Qf3 {[%clk 0:01:48]}  Kg7 {[%clk 0:05:49]} 29. Nc4 {[%clk 0:01:48]}  Nd5 {[%clk 0:05:49]} 30. Ra1 {[%clk 0:01:48]}  Nb4 {[%clk 0:05:49]} 31. Qe2 {[%clk 0:01:48]}  Nc6 {[%clk 0:05:49]} 32. Ne5 {[%clk 0:01:48]}  Na7 {[%clk 0:05:49]} 33. Qe3 {[%clk 0:01:48]}  Nc8 {[%clk 0:05:49]} 34. Re2 {[%clk 0:01:48]}  Nd6 {[%clk 0:05:49]} 35. Rae1 {[%clk 0:01:48]}  Nf5 {[%clk 0:05:49]} 36. Qg5 {[%clk 0:01:48]}  R4d5 {[%clk 0:05:49]} 37. Nxg6 {[%clk 0:01:48]}  fxg6 {[%clk 0:05:49]} 38. Rxe6 {[%clk 0:01:48]}  Qf7 {[%clk 0:05:49]} 39. c4 {[%clk 0:01:48]}  Nd4 {[%clk 0:05:49]} 40. Rxg6+ {[%clk 0:01:48]}  Qxg6 {[%clk 0:05:49]} 41. Re7+ {[%clk 0:01:48]}  Kf8 {[%clk 0:05:49]} 42. Qxg6 {[%clk 0:01:48]}  Kxe7 {[%clk 0:05:49]} 43. cxd5 {[%clk 0:01:48]}  Rxd5 {[%clk 0:05:49]} 44. Qg7+ {[%clk 0:01:48]}  Ke6 {[%clk 0:05:49]} 45. Qxb7 {[%clk 0:01:48]}  Rd6 {[%clk 0:05:49]} 46. Kg2 {[%clk 0:01:48]}  Nf5 {[%clk 0:05:49]} 47. Qc8+ {[%clk 0:01:48]}  Kf6 {[%clk 0:05:49]} 48. Qxc5 {[%clk 0:01:48]}  Rxd3 {[%clk 0:05:49]} 49. b4 {[%clk 0:01:48]}  h4 {[%clk 0:05:49]} 50. b5 {[%clk 0:01:48]}  axb5 {[%clk 0:05:49]} 51. axb5 {[%clk 0:01:48]}  hxg3 {[%clk 0:05:49]} 52. hxg3 {[%clk 0:01:48]}  Nd6 {[%clk 0:05:49]} 53. b6 {[%clk 0:01:48]}  Ke6 {[%clk 0:05:49]} 54. Qb4 {[%clk 0:01:48]}  Kd5 {[%clk 0:05:49]} 1-0


[Site "http://www.Chess.com"]

[Event "FIDE World Rapid Chess Championship 2021"]
[White "Ivic, Velimir"]
[Black "Bluebaum, Matthias"]
[WhiteFideId "950122"]
[BlackFideId "24651516"]
[WhiteElo "2357"]
[BlackElo "2575"]
[Result "1-0"]
[Round "05"]
[TimeControl "900+10"]
[Date "2021.12.26"]
[WhiteClock "0:06:23"]
[BlackClock "0:01:22"]

1. e4 {[%clk 0:06:23]}  e6 {[%clk 0:01:22]} 2. d4 {[%clk 0:06:23]}  d5 {[%clk 0:01:22]} 3. Nc3 {[%clk 0:06:23]}  Nf6 {[%clk 0:01:22]} 4. e5 {[%clk 0:06:23]}  Nfd7 {[%clk 0:01:22]} 5. f4 {[%clk 0:06:23]}  c5 {[%clk 0:01:22]} 6. Nf3 {[%clk 0:06:23]}  cxd4 {[%clk 0:01:22]} 7. Nxd4 {[%clk 0:06:23]}  Bc5 {[%clk 0:01:22]} 8. Be3 {[%clk 0:06:23]}  O-O {[%clk 0:01:22]} 9. Qd2 {[%clk 0:06:23]}  a6 {[%clk 0:01:22]} 10. O-O-O {[%clk 0:06:23]}  Qc7 {[%clk 0:01:22]} 11. Qf2 {[%clk 0:06:23]}  b5 {[%clk 0:01:22]} 12. Bd3 {[%clk 0:06:23]}  Nb6 {[%clk 0:01:22]} 13. Qh4 {[%clk 0:06:23]}  g6 {[%clk 0:01:22]} 14. Rhe1 {[%clk 0:06:23]}  b4 {[%clk 0:01:22]} 15. Nce2 {[%clk 0:06:23]}  Nc4 {[%clk 0:01:22]} 16. Bxc4 {[%clk 0:06:23]}  dxc4 {[%clk 0:01:22]} 17. Ng3 {[%clk 0:06:23]}  Be7 {[%clk 0:01:22]} 18. Qh6 {[%clk 0:06:23]}  Bb7 {[%clk 0:01:22]} 19. f5 {[%clk 0:06:23]}  Qxe5 {[%clk 0:01:22]} 20. Bg5 {[%clk 0:06:23]}  Bxg5+ {[%clk 0:01:22]} 21. Qxg5 {[%clk 0:06:23]}  Qa5 {[%clk 0:01:22]} 22. Qh6 {[%clk 0:06:23]}  Nd7 {[%clk 0:01:22]} 23. Nxe6 {[%clk 0:06:23]} 1-0


[Site "http://www.Chess.com"]

[Event "FIDE World Rapid Chess Championship 2021"]
[White "Samunenkov, Ihor"]
[Black "Alonso Rosell, Alvar"]
[WhiteFideId "14187086"]
[BlackFideId "2270544"]
[WhiteElo "2259"]
[BlackElo "2571"]
[Result "1/2-1/2"]
[Round "05"]
[TimeControl "900+10"]
[Date "2021.12.26"]
[WhiteClock "0:00:23"]
[BlackClock "0:02:03"]

1. d4 {[%clk 0:00:23]}  Nf6 {[%clk 0:02:03]} 2. g3 {[%clk 0:00:23]}  d5 {[%clk 0:02:03]} 3. Nf3 {[%clk 0:00:23]}  e6 {[%clk 0:02:03]} 4. Bg2 {[%clk 0:00:23]}  b5 {[%clk 0:02:03]} 5. O-O {[%clk 0:00:23]}  Be7 {[%clk 0:02:03]} 6. a4 {[%clk 0:00:23]}  b4 {[%clk 0:02:03]} 7. c4 {[%clk 0:00:23]}  bxc3 {[%clk 0:02:03]} 8. Nxc3 {[%clk 0:00:23]}  O-O {[%clk 0:02:03]} 9. Bf4 {[%clk 0:00:23]}  a5 {[%clk 0:02:03]} 10. Rc1 {[%clk 0:00:23]}  c6 {[%clk 0:02:03]} 11. Re1 {[%clk 0:00:23]}  Na6 {[%clk 0:02:03]} 12. e4 {[%clk 0:00:23]}  Nb4 {[%clk 0:02:03]} 13. Ne5 {[%clk 0:00:23]}  Bb7 {[%clk 0:02:03]} 14. exd5 {[%clk 0:00:23]}  Nfxd5 {[%clk 0:02:03]} 15. Be3 {[%clk 0:00:23]}  Rc8 {[%clk 0:02:03]} 16. Ne4 {[%clk 0:00:23]}  Ba6 {[%clk 0:02:03]} 17. Nc5 {[%clk 0:00:23]}  Bxc5 {[%clk 0:02:03]} 18. Rxc5 {[%clk 0:00:23]}  f6 {[%clk 0:02:03]} 19. Nc4 {[%clk 0:00:23]}  Bxc4 {[%clk 0:02:03]} 20. Rxc4 {[%clk 0:00:23]}  Re8 {[%clk 0:02:03]} 21. Bf3 {[%clk 0:00:23]}  e5 {[%clk 0:02:03]} 22. dxe5 {[%clk 0:00:23]}  Rxe5 {[%clk 0:02:03]} 23. Bd4 {[%clk 0:00:23]}  Rxe1+ {[%clk 0:02:03]} 24. Qxe1 {[%clk 0:00:23]}  Qd7 {[%clk 0:02:03]} 25. Bc3 {[%clk 0:00:23]}  Re8 {[%clk 0:02:03]} 26. Re4 {[%clk 0:00:23]}  Rxe4 {[%clk 0:02:03]} 27. Qxe4 {[%clk 0:00:23]}  Nxc3 {[%clk 0:02:03]} 28. bxc3 {[%clk 0:00:23]}  Nd5 {[%clk 0:02:03]} 29. Bg4 {[%clk 0:00:23]}  Qe7 {[%clk 0:02:03]} 30. Be6+ {[%clk 0:00:23]}  Kf8 {[%clk 0:02:03]} 31. Bxd5 {[%clk 0:00:23]}  cxd5 {[%clk 0:02:03]} 32. Qxd5 {[%clk 0:00:23]}  Qe1+ {[%clk 0:02:03]} 33. Kg2 {[%clk 0:00:23]}  Qxc3 {[%clk 0:02:03]} 34. Qd8+ {[%clk 0:00:23]}  Kf7 {[%clk 0:02:03]} 35. Qd7+ {[%clk 0:00:23]}  Kf8 {[%clk 0:02:03]} 36. Qd8+ {[%clk 0:00:23]}  Kf7 {[%clk 0:02:03]} 1/2-1/2


[Site "http://www.Chess.com"]

[Event "FIDE World Rapid Chess Championship 2021"]
[White "Suleymanli, Aydin"]
[Black "Najer, Evgeniy"]
[WhiteFideId "13413937"]
[BlackFideId "4118987"]
[WhiteElo "2202"]
[BlackElo "2565"]
[Result "0-1"]
[Round "05"]
[TimeControl "900+10"]
[Date "2021.12.26"]
[WhiteClock "0:01:56"]
[BlackClock "0:02:32"]

1. d4 {[%clk 0:01:56]}  Nf6 {[%clk 0:02:32]} 2. c4 {[%clk 0:01:56]}  e6 {[%clk 0:02:32]} 3. Nc3 {[%clk 0:01:56]}  Bb4 {[%clk 0:02:32]} 4. f3 {[%clk 0:01:56]}  c5 {[%clk 0:02:32]} 5. d5 {[%clk 0:01:56]}  O-O {[%clk 0:02:32]} 6. e4 {[%clk 0:01:56]}  b5 {[%clk 0:02:32]} 7. Nh3 {[%clk 0:01:56]}  d6 {[%clk 0:02:32]} 8. Nf4 {[%clk 0:01:56]}  a6 {[%clk 0:02:32]} 9. Bd2 {[%clk 0:01:56]}  exd5 {[%clk 0:02:32]} 10. Nfxd5 {[%clk 0:01:56]}  Nxd5 {[%clk 0:02:32]} 11. Nxd5 {[%clk 0:01:56]}  Bxd2+ {[%clk 0:02:32]} 12. Qxd2 {[%clk 0:01:56]}  Nc6 {[%clk 0:02:32]} 13. cxb5 {[%clk 0:01:56]}  Nd4 {[%clk 0:02:32]} 14. b6 {[%clk 0:01:56]}  Qh4+ {[%clk 0:02:32]} 15. Kd1 {[%clk 0:01:56]}  Rb8 {[%clk 0:02:32]} 16. Qf4 {[%clk 0:01:56]}  Qd8 {[%clk 0:02:32]} 17. Bc4 {[%clk 0:01:56]}  Be6 {[%clk 0:02:32]} 18. g4 {[%clk 0:01:56]}  Bxd5 {[%clk 0:02:32]} 19. Bxd5 {[%clk 0:01:56]}  Qxb6 {[%clk 0:02:32]} 20. b3 {[%clk 0:01:56]}  Qa5 {[%clk 0:02:32]} 21. Qe3 {[%clk 0:01:56]}  Qa3 {[%clk 0:02:32]} 22. Qc3 {[%clk 0:01:56]}  Rb4 {[%clk 0:02:32]} 23. Ke1 {[%clk 0:01:56]}  Nb5 {[%clk 0:02:32]} 24. Qc1 {[%clk 0:01:56]}  Qa5 {[%clk 0:02:32]} 25. Qd2 {[%clk 0:01:56]}  Qd8 {[%clk 0:02:32]} 26. Kf2 {[%clk 0:01:56]}  Rd4 {[%clk 0:02:32]} 27. Qe3 {[%clk 0:01:56]}  Nc7 {[%clk 0:02:32]} 28. Rad1 {[%clk 0:01:56]}  Nxd5 {[%clk 0:02:32]} 29. exd5 {[%clk 0:01:56]}  Re8 {[%clk 0:02:32]} 30. Qc1 {[%clk 0:01:56]}  Qh4+ {[%clk 0:02:32]} 31. Kf1 {[%clk 0:01:56]}  Qf6 {[%clk 0:02:32]} 32. Kf2 {[%clk 0:01:56]}  Rxg4 {[%clk 0:02:32]} 0-1


[Site "http://www.Chess.com"]

[Event "FIDE World Rapid Chess Championship 2021"]
[White "Salem, A.R. Saleh"]
[Black "Dudin, Gleb"]
[WhiteFideId "9301348"]
[BlackFideId "34184934"]
[WhiteElo "2729"]
[BlackElo "2247"]
[Result "1/2-1/2"]
[Round "05"]
[TimeControl "900+10"]
[Date "2021.12.26"]
[WhiteClock "0:00:38"]
[BlackClock "0:00:11"]

1. d4 {[%clk 0:00:01]}  d5 {[%clk 0:00:24]} 2. c4 {[%clk 0:00:01]}  c6 {[%clk 0:00:24]} 3. Nc3 {[%clk 0:00:01]}  Nf6 {[%clk 0:00:24]} 4. Nf3 {[%clk 0:00:01]}  dxc4 {[%clk 0:00:24]} 5. e4 {[%clk 0:00:01]}  b5 {[%clk 0:00:24]} 6. Qc2 {[%clk 0:00:01]}  e6 {[%clk 0:00:24]} 7. Be2 {[%clk 0:00:01]}  Nbd7 {[%clk 0:00:24]} 8. O-O {[%clk 0:00:01]}  Bb7 {[%clk 0:00:24]} 9. b3 {[%clk 0:00:01]}  cxb3 {[%clk 0:00:24]} 10. axb3 {[%clk 0:00:01]}  Be7 {[%clk 0:00:24]} 11. e5 {[%clk 0:00:01]}  Nd5 {[%clk 0:00:24]} 12. Nxd5 {[%clk 0:00:01]}  cxd5 {[%clk 0:00:24]} 13. Bxb5 {[%clk 0:00:01]}  O-O {[%clk 0:00:24]} 14. Bd2 {[%clk 0:00:01]}  Nb8 {[%clk 0:00:24]} 15. Rfc1 {[%clk 0:00:01]}  Qb6 {[%clk 0:00:24]} 16. Bd3 {[%clk 0:00:01]}  Nc6 {[%clk 0:00:24]} 17. Bxh7+ {[%clk 0:00:01]}  Kh8 {[%clk 0:00:24]} 18. Bd3 {[%clk 0:00:01]}  Rfc8 {[%clk 0:00:24]} 19. Qd1 {[%clk 0:00:01]}  Kg8 {[%clk 0:00:24]} 20. Bg5 {[%clk 0:00:01]}  Qd8 {[%clk 0:00:24]} 21. h4 {[%clk 0:00:01]}  a5 {[%clk 0:00:24]} 22. Bxe7 {[%clk 0:00:01]}  Qxe7 {[%clk 0:00:24]} 23. Ng5 {[%clk 0:00:01]}  g6 {[%clk 0:00:24]} 24. Bb5 {[%clk 0:00:01]}  Nb4 {[%clk 0:00:24]} 25. Rxc8+ {[%clk 0:00:01]}  Rxc8 {[%clk 0:00:24]} 26. Rxa5 {[%clk 0:00:01]}  Rc3 {[%clk 0:00:24]} 27. Ra1 {[%clk 0:00:01]}  Bc6 {[%clk 0:00:24]} 28. Bxc6 {[%clk 0:00:01]}  Nxc6 {[%clk 0:00:24]} 29. Nf3 {[%clk 0:00:01]}  Qb4 {[%clk 0:00:24]} 30. h5 {[%clk 0:00:01]}  Qxb3 {[%clk 0:00:24]} 31. Qd2 {[%clk 0:00:01]}  Rxf3 {[%clk 0:00:24]} 32. gxf3 {[%clk 0:00:01]}  Qxf3 {[%clk 0:00:24]} 33. Qg5 {[%clk 0:00:01]}  Nxd4 {[%clk 0:00:24]} 34. Ra8+ {[%clk 0:00:01]}  Kg7 {[%clk 0:00:24]} 35. Qf6+ {[%clk 0:00:01]}  Qxf6 {[%clk 0:00:24]} 36. exf6+ {[%clk 0:00:01]}  Kh7 {[%clk 0:00:24]} 37. Rf8 {[%clk 0:00:01]}  gxh5 {[%clk 0:00:24]} 38. Rxf7+ {[%clk 0:00:01]}  Kg6 {[%clk 0:00:24]} 39. Rf8 {[%clk 0:00:01]}  Nf3+ {[%clk 0:00:24]} 40. Kg2 {[%clk 0:00:01]}  Ne5 {[%clk 0:00:24]} 41. Kg3 {[%clk 0:00:01]}  Nd7 {[%clk 0:00:24]} 42. Rd8 {[%clk 0:00:01]}  Nxf6 {[%clk 0:00:24]} 43. Kf4 {[%clk 0:00:01]}  e5+ {[%clk 0:00:24]} 44. Kxe5 {[%clk 0:00:01]}  Ng4+ {[%clk 0:00:24]} 45. Kf4 {[%clk 0:00:01]}  Nxf2 {[%clk 0:00:24]} 46. Rd6+ {[%clk 0:00:01]}  Kf7 {[%clk 0:00:24]} 47. Rxd5 {[%clk 0:00:01]}  Ng4 {[%clk 0:00:24]} 48. Ra5 {[%clk 0:00:01]}  Kg6 {[%clk 0:00:24]} 49. Ra6+ {[%clk 0:00:01]}  Kf7 {[%clk 0:00:24]} 50. Kf5 {[%clk 0:00:01]}  Ne3+ {[%clk 0:00:24]} 51. Ke4 {[%clk 0:00:01]}  Ng4 {[%clk 0:00:24]} 52. Kf4 {[%clk 0:00:01]}  Ke7 {[%clk 0:00:24]} 53. Kf5 {[%clk 0:00:01]}  Ne3+ {[%clk 0:00:24]} 54. Ke5 {[%clk 0:00:01]}  Ng4+ {[%clk 0:00:24]} 55. Kf4 {[%clk 0:00:01]}  Kf7 {[%clk 0:00:24]} 56. Kg5 {[%clk 0:00:01]}  Ke7 {[%clk 0:00:24]} 57. Ra1 {[%clk 0:00:01]}  Ke6 {[%clk 0:00:24]} 58. Re1+ {[%clk 0:00:01]}  Kd5 {[%clk 0:00:24]} 59. Kxh5 {[%clk 0:00:01]}  Ne5 {[%clk 0:00:24]} 60. Ra1 {[%clk 0:00:01]}  Ke4 {[%clk 0:00:29]} 61. Kg5 {[%clk 0:00:47]}  Nf3+ {[%clk 0:00:29]} 62. Kf6 {[%clk 0:00:47]}  Nd4 {[%clk 0:00:29]} 63. Ra4 {[%clk 0:00:47]}  Kd5 {[%clk 0:00:29]} 64. Ra8 {[%clk 0:00:47]}  Ke4 {[%clk 0:00:29]} 65. Ra5 {[%clk 0:00:47]}  Nf3 {[%clk 0:00:29]} 66. Ke6 {[%clk 0:00:47]}  Nd4+ {[%clk 0:00:29]} 67. Kd6 {[%clk 0:00:47]}  Nf5+ {[%clk 0:00:29]} 68. Kc5 {[%clk 0:00:47]}  Ke5 {[%clk 0:00:29]} 69. Ra1 {[%clk 0:00:47]}  Ng3 {[%clk 0:00:29]} 70. Re1+ {[%clk 0:00:47]}  Ne4+ {[%clk 0:00:29]} 71. Kc4 {[%clk 0:00:47]}  Kf5 {[%clk 0:00:29]} 72. Kd4 {[%clk 0:00:47]}  Nf6 {[%clk 0:00:29]} 73. Re5+ {[%clk 0:00:47]}  Kg6 {[%clk 0:00:29]} 74. Ra5 {[%clk 0:01:58]}  Ng4 {[%clk 0:00:59]} 75. Ke4 {[%clk 0:01:58]}  Nf6+ {[%clk 0:00:59]} 76. Ke5 {[%clk 0:01:58]}  Ng4+ {[%clk 0:00:59]} 77. Ke6 {[%clk 0:01:58]}  Nh6 {[%clk 0:00:59]} 78. Rb5 {[%clk 0:01:10]}  Ng4 {[%clk 0:00:25]} 79. Rd5 {[%clk 0:01:10]}  Nh6 {[%clk 0:00:25]} 80. Ke5 {[%clk 0:01:10]}  Nf7+ {[%clk 0:00:25]} 81. Ke6 {[%clk 0:01:10]}  Nh6 {[%clk 0:00:25]} 82. Rc5 {[%clk 0:01:10]}  Ng4 {[%clk 0:00:25]} 83. Rb5 {[%clk 0:01:10]}  Nh6 {[%clk 0:00:25]} 84. Ke5 {[%clk 0:01:10]}  Nf7+ {[%clk 0:00:25]} 85. Kf4 {[%clk 0:01:10]}  Kf6 {[%clk 0:00:25]} 86. Rb6+ {[%clk 0:01:10]}  Kg7 {[%clk 0:00:25]} 87. Kf5 {[%clk 0:01:10]}  Nh6+ {[%clk 0:00:25]} 88. Ke6 {[%clk 0:01:10]}  Kg6 {[%clk 0:00:25]} 89. Ke5+ {[%clk 0:00:38]}  Kg7 {[%clk 0:01:18]} 90. Re6 {[%clk 0:00:38]}  Nf7+ {[%clk 0:01:18]} 91. Kf4 {[%clk 0:00:38]}  Nh6 {[%clk 0:01:18]} 92. Kg5 {[%clk 0:00:38]}  Nf7+ {[%clk 0:01:18]} 93. Kh5 {[%clk 0:00:38]}  Nd8 {[%clk 0:01:18]} 94. Rd6 {[%clk 0:00:38]}  Nf7 {[%clk 0:01:18]} 95. Ra6 {[%clk 0:00:38]}  Ne5 {[%clk 0:01:18]} 96. Re6 {[%clk 0:00:24]}  Nf7 {[%clk 0:00:44]} 97. Rg6+ {[%clk 0:00:24]}  Kf8 {[%clk 0:00:44]} 98. Ra6 {[%clk 0:00:24]}  Kg7 {[%clk 0:00:44]} 99. Kg4 {[%clk 0:00:24]}  Nh6+ {[%clk 0:00:44]} 100. Kf4 {[%clk 0:00:24]}  Nf7 {[%clk 0:00:44]} 101. Kf5 {[%clk 0:00:24]}  Nh6+ {[%clk 0:00:44]} 102. Ke5 {[%clk 0:00:24]}  Nf7+ {[%clk 0:00:44]} 103. Ke6 {[%clk 0:00:24]}  Ng5+ {[%clk 0:00:44]} 104. Kf5 {[%clk 0:00:24]}  Nh7 {[%clk 0:00:47]} 105. Ra7+ {[%clk 0:00:36]}  Kg8 {[%clk 0:00:47]} 106. Re7 {[%clk 0:00:36]}  Nf8 {[%clk 0:00:47]} 107. Kf6 {[%clk 0:00:36]}  Nh7+ {[%clk 0:00:47]} 108. Kg6 {[%clk 0:00:36]}  Nf8+ {[%clk 0:00:47]} 109. Kh6 {[%clk 0:00:36]}  Kh8 {[%clk 0:00:47]} 110. Rf7 {[%clk 0:00:36]}  Kg8 {[%clk 0:00:47]} 111. Rg7+ {[%clk 0:00:36]}  Kh8 {[%clk 0:00:47]} 112. Rg4 {[%clk 0:00:36]}  Nd7 {[%clk 0:00:47]} 113. Rg3 {[%clk 0:00:38]}  Nf8 {[%clk 0:00:11]} 114. Rg1 {[%clk 0:00:38]}  Nd7 {[%clk 0:00:11]} 115. Rg2 {[%clk 0:00:38]}  Nf8 {[%clk 0:00:11]} 116. Rg7 {[%clk 0:00:38]}  Ne6 {[%clk 0:00:11]} 117. Re7 {[%clk 0:00:38]}  Nf8 {[%clk 0:00:11]} 118. Ra7 {[%clk 0:00:38]} 1/2-1/2


[Site "http://www.Chess.com"]

[Event "FIDE World Rapid Chess Championship 2021"]
[White "Artemiev, Vladislav"]
[Black "Yuffa, Daniil"]
[WhiteFideId "24101605"]
[BlackFideId "24131423"]
[WhiteElo "2714"]
[BlackElo "2514"]
[Result "0-1"]
[Round "05"]
[TimeControl "900+10"]
[Date "2021.12.26"]
[WhiteClock "0:00:24"]
[BlackClock "0:00:38"]

1. Nf3 {[%clk 0:00:21]}  d6 {[%clk 0:02:38]} 2. d4 {[%clk 0:00:21]}  Nf6 {[%clk 0:02:38]} 3. Nc3 {[%clk 0:00:21]}  Bf5 {[%clk 0:02:38]} 4. Bg5 {[%clk 0:00:21]}  Nbd7 {[%clk 0:02:38]} 5. Nh4 {[%clk 0:00:21]}  Bg6 {[%clk 0:02:38]} 6. Nxg6 {[%clk 0:00:21]}  hxg6 {[%clk 0:02:38]} 7. e4 {[%clk 0:00:21]}  e6 {[%clk 0:02:38]} 8. Qd2 {[%clk 0:00:21]}  Be7 {[%clk 0:02:38]} 9. O-O-O {[%clk 0:00:21]}  c6 {[%clk 0:02:38]} 10. Bd3 {[%clk 0:00:21]}  Qb6 {[%clk 0:02:38]} 11. Be2 {[%clk 0:00:21]}  d5 {[%clk 0:02:38]} 12. e5 {[%clk 0:00:21]}  Ng8 {[%clk 0:02:38]} 13. Be3 {[%clk 0:00:21]}  O-O-O {[%clk 0:02:38]} 14. Kb1 {[%clk 0:00:21]}  Kb8 {[%clk 0:02:38]} 15. f4 {[%clk 0:00:21]}  c5 {[%clk 0:02:38]} 16. Bf3 {[%clk 0:00:21]}  Qc6 {[%clk 0:02:38]} 17. dxc5 {[%clk 0:00:21]}  Bxc5 {[%clk 0:02:38]} 18. Ne2 {[%clk 0:00:21]}  Bxe3 {[%clk 0:02:38]} 19. Qxe3 {[%clk 0:00:21]}  Ne7 {[%clk 0:02:38]} 20. Rd3 {[%clk 0:00:21]}  Qb6 {[%clk 0:02:38]} 21. Qxb6 {[%clk 0:00:21]}  Nxb6 {[%clk 0:02:38]} 22. h4 {[%clk 0:00:21]}  g5 {[%clk 0:02:38]} 23. fxg5 {[%clk 0:00:21]}  Nc4 {[%clk 0:02:38]} 24. b3 {[%clk 0:00:21]}  Nxe5 {[%clk 0:02:38]} 25. Re3 {[%clk 0:00:21]}  N5c6 {[%clk 0:02:38]} 26. Bg4 {[%clk 0:00:21]}  e5 {[%clk 0:02:38]} 27. Rf3 {[%clk 0:00:21]}  Rdf8 {[%clk 0:02:38]} 28. h5 {[%clk 0:00:21]}  f5 {[%clk 0:02:38]} 29. gxf6 {[%clk 0:00:21]}  gxf6 {[%clk 0:02:38]} 30. Rhf1 {[%clk 0:00:21]}  f5 {[%clk 0:02:38]} 31. Bxf5 {[%clk 0:00:21]}  Rxh5 {[%clk 0:01:41]} 32. Bh3 {[%clk 0:00:30]}  Rxf3 {[%clk 0:01:41]} 33. Rxf3 {[%clk 0:00:30]}  e4 {[%clk 0:01:41]} 34. Rf8+ {[%clk 0:00:30]}  Kc7 {[%clk 0:01:41]} 35. c3 {[%clk 0:00:30]}  Rh6 {[%clk 0:01:41]} 36. Kc2 {[%clk 0:00:30]}  b5 {[%clk 0:01:41]} 37. b4 {[%clk 0:00:30]}  a6 {[%clk 0:01:41]} 38. Kd2 {[%clk 0:00:30]}  Ne5 {[%clk 0:01:41]} 39. Nd4 {[%clk 0:00:30]}  N7c6 {[%clk 0:01:41]} 40. Nf5 {[%clk 0:00:30]}  Rg6 {[%clk 0:01:41]} 41. Ke2 {[%clk 0:00:24]}  Nd3 {[%clk 0:00:38]} 42. Rf7+ {[%clk 0:00:24]}  Kb6 {[%clk 0:00:38]} 43. Ne3 {[%clk 0:00:24]}  Rd6 {[%clk 0:00:38]} 44. Be6 {[%clk 0:00:24]}  Ndxb4 {[%clk 0:00:38]} 45. Re7 {[%clk 0:00:24]}  Nxe7 {[%clk 0:00:38]} 0-1


[Site "http://www.Chess.com"]